fUST/lending_fUST_20251231
["ID","MTS","AMOUNT","RATE_DAILY","PERIOD"]
[400188297,1767179443587,-1500.0,0.00014795,2]
[400188298,1767179443599,-1500.0,0.00014795,2]
[400188299,1767179443611,-1500.0,0.00014795,2]
[400188300,1767179443624,-1500.0,0.00014795,2]
[400188301,1767179443635,-1500.0,0.00014795,2]
[400188302,1767179443646,-1500.0,0.00014795,2]
[400188303,1767179443658,-1142.5109954,0.00014795,2]
[400188304,1767179443673,-1639.28203437,0.00014795,2]
[400188305,1767179443684,-1500.0,0.00014795,2]
[400188306,1767179443695,-1500.0,0.00014795,2]
[400188307,1767179443707,-1500.0,0.00014795,2]
[400188308,1767179443718,-1633.65989049,0.00014795,2]
[400188309,1767179443729,-1371.80562161,0.00014795,2]
[400188310,1767179443742,-690.10820632,0.00014795,2]
[400188311,1767179443754,-1078.13053233,0.00014795,2]
[400188312,1767179443765,-1500.0,0.00014795,2]
[400188313,1767179443777,-1500.0,0.00014795,2]
[400188314,1767179443789,-1500.0,0.00014795,2]
[400188315,1767179443800,-1500.0,0.00014795,2]
[400188316,1767179443813,-1500.0,0.00014795,2]
[400188317,1767179443824,-1500.0,0.00014795,2]
[400188318,1767179443835,-1500.0,0.00014795,2]
[400188319,1767179443846,-1500.0,0.00014795,2]
[400188321,1767179443857,-1500.0,0.00014795,2]
[400188323,1767179443867,-1500.0,0.00014795,2]
[400188324,1767179443878,-1105.24677987,0.00014795,2]
[400188326,1767179443888,-1016.82099752,0.00014795,2]
[400188327,1767179443900,-1500.0,0.00014795,2]
[400188328,1767179443911,-1500.0,0.00014795,2]
[400188329,1767179443922,-202.297586,0.00014795,2]
[400188330,1767179443933,-202.297586,0.00014795,2]
[400188331,1767179443945,-202.297586,0.00014795,2]
[400188332,1767179443956,-202.297586,0.00014795,2]
[400188333,1767179443967,-100000.0,0.00014882,2]
[400188334,1767179443979,-1436.184966,0.00014882,2]
[400188335,1767179443990,-1436.184966,0.00014882,2]
[400188336,1767179444002,-1436.184966,0.00014882,2]
[400188337,1767179444013,-1436.184966,0.00014882,2]
[400188338,1767179444025,-202.297586,0.00014882,2]
[400188339,1767179444037,-202.297586,0.00014882,2]
[400188340,1767179444047,-202.297586,0.00014882,2]
[400188341,1767179444059,-202.297586,0.00014882,2]
[400188342,1767179444070,-151.0,0.00014882,2]
[400188343,1767179444081,-151.0,0.00014882,2]
[400188344,1767179444091,-776.15,0.00014898,2]
[400188345,1767179444102,-151.0,0.00014916,2]
[400188346,1767179444113,-1500.0,0.00014916,2]
[400188347,1767179444125,-613.45090759,0.00014916,2]
[400188348,1767179444137,-318.87701711,0.00014916,2]
[400188349,1767179444149,-1500.0,0.00014916,2]
[400188350,1767179444161,-2000.0,0.00014916,2]
[400188351,1767179444173,-2000.0,0.00014916,2]
[400188352,1767179444183,-160.96609247,0.00014916,2]
[400188353,1767179444194,-2000.0,0.00014916,2]
[400188354,1767179444205,-2000.0,0.00014916,2]
[400188355,1767179444216,-1500.0,0.00014916,2]
[400188356,1767179444226,-1500.0,0.00014916,2]
[400188357,1767179444238,-1500.0,0.00014916,2]
[400188358,1767179444248,-2000.0,0.00014916,2]
[400188359,1767179444260,-2000.0,0.00014916,2]
[400188360,1767179444385,-2000.0,0.00014916,2]
[400188361,1767179444396,-2000.0,0.00014916,2]
[400188362,1767179444407,-2000.0,0.00014916,2]
[400188363,1767179444418,-2000.0,0.00014916,2]
[400188364,1767179444429,-2000.0,0.00014916,2]
[400188365,1767179444439,-1503.81920107,0.00014916,2]
[400188366,1767179444449,-2000.0,0.00014916,2]
[400188367,1767179444460,-250.0,0.00014973,2]
[400188368,1767179444470,-253.42683694,0.00015288,2]
[400188369,1767179444481,-900.0,0.00015316,2]
[400188370,1767179444491,-1500.0,0.00015342,2]
[400188371,1767179444504,-1500.0,0.00015342,2]
[400188372,1767179444514,-1500.0,0.00015342,2]
[400188373,1767179444525,-182.49603851,0.00015342,2]
[400188374,1767179444535,-1500.0,0.00015342,2]
[400188375,1767179444545,-1500.0,0.00015342,2]
[400188376,1767179444556,-2000.0,0.00015342,2]
[400188377,1767179444567,-464.65372712,0.00015342,2]
[400188378,1767179444578,-509.61748521,0.00015342,2]
[400188379,1767179444588,-1155.66749295,0.00015342,2]
[400188380,1767179444600,-2000.0,0.00015342,2]
[400188381,1767179444612,-1500.0,0.00015342,2]
[400188382,1767179444624,-415.94669576,0.00015342,2]
[400188383,1767179444636,-1518.84773542,0.00015342,2]
[400188384,1767179444647,-2000.0,0.00015342,2]
[400188385,1767179444658,-422.85192268,0.00015342,2]
[400188386,1767179444670,-1500.0,0.00015342,2]
[400188387,1767179444681,-1500.0,0.00015342,2]
[400188388,1767179444692,-1010.33134929,0.00015342,2]
[400188389,1767179444703,-409.51288327,0.00015342,2]
[400188390,1767179444714,-500.0,0.00015342,2]
[400188391,1767179444725,-2000.0,0.00015342,2]
[400188392,1767179444736,-1500.0,0.00015342,2]
[400188393,1767179444747,-604.13585388,0.00015342,2]
[400188394,1767179444758,-1651.58290824,0.00015342,2]
[400188395,1767179444769,-2000.0,0.00015342,2]
[400188396,1767179444780,-2000.0,0.00015342,2]
[400188397,1767179444792,-1500.0,0.00015342,2]
[400188398,1767179444803,-1500.0,0.00015342,2]
[400188399,1767179444815,-1500.0,0.00015342,2]
[400188400,1767179444827,-2000.0,0.00015342,2]
[400188401,1767179444837,-1500.0,0.00015342,2]
[400188402,1767179444848,-1500.0,0.00015342,2]
[400188403,1767179444859,-1500.0,0.00015342,2]
[400188404,1767179444869,-1218.16061512,0.00015342,2]
[400188405,1767179444879,-1004.79599952,0.00015342,2]
[400188406,1767179444890,-1500.0,0.00015342,2]
[400188407,1767179444901,-1500.0,0.00015342,2]
[400188408,1767179444912,-1492.01262303,0.00015342,2]
[400188409,1767179444923,-1436.184966,0.00015464,2]
[400188410,1767179444934,-1436.184966,0.00015464,2]
[400188411,1767179444944,-1436.184966,0.00015464,2]
[400188412,1767179444955,-1436.184966,0.00015464,2]
[400188413,1767179444966,-202.297586,0.00015464,2]
[400188414,1767179444976,-202.297586,0.00015464,2]
[400188415,1767179444987,-202.297586,0.00015464,2]
[400188416,1767179444997,-202.297586,0.00015464,2]
[400188417,1767179445008,-151.0,0.00015464,2]
[400188418,1767179445018,-151.0,0.00015464,2]
[400188419,1767179445029,-2500.0,0.00015464,2]
[400188420,1767179445040,-2576.89571839,0.00015464,2]
[400188421,1767179445049,-2360.16624078,0.00015464,2]
[400188422,1767179445060,-2500.0,0.00015464,2]
[400188423,1767179445071,-1260.55819049,0.00015464,2]
[400188424,1767179445083,-2500.0,0.00015464,2]
[400188425,1767179445094,-343.79480379,0.00015464,2]
[400188426,1767179445104,-2500.0,0.00015464,2]
[400188427,1767179445115,-2500.0,0.00015464,2]
[400188428,1767179445125,-2500.0,0.00015464,2]
[400188429,1767179445138,-2500.0,0.00015464,2]
[400188430,1767179445149,-2500.0,0.00015464,2]
[400188431,1767179445159,-151.0,0.000155,2]
[400188432,1767179445175,-441.6322025,0.00015581,2]
[400188433,1767179445186,-1000.0,0.0001569,2]
[400188434,1767179445196,-239.48249655,0.00015702,5]
[400188435,1767179445207,-281.0863482,0.00015702,5]
[400188436,1767179445219,-151.0,0.00015779,2]
[400188437,1767179445230,-151.0,0.00015779,2]
[400188438,1767179445240,-30000.0,0.00015779,2]
[400188439,1767179445251,-259.46774509,0.00015779,2]
[400188440,1767179445262,-2487.15318209,0.00015779,2]
[400188441,1767179445272,-151.0,0.00015779,2]
[400188444,1767179445282,-1000.0,0.00015779,2]
[400188446,1767179445291,-151.0,0.00015779,2]
[400188448,1767179445301,-151.0,0.00015779,2]
[400188449,1767179445311,-151.0,0.00015779,2]
[400188450,1767179445321,-156.587,0.00015779,2]
[400188451,1767179445331,-151.0,0.00015779,2]
[400188453,1767179445340,-151.41075245,0.00015779,2]
[400188454,1767179445350,-151.0,0.00015779,2]
[400188455,1767179445360,-151.0,0.00015779,2]
[400188456,1767179445370,-151.0,0.00015779,2]
[400188457,1767179445379,-151.0,0.00015779,2]
[400188458,1767179445389,-151.0,0.00015779,2]
[400188459,1767179445400,-151.0,0.00015779,2]
[400188460,1767179445410,-151.0,0.00015779,2]
[400188461,1767179445424,-151.0,0.00015779,2]
[400188462,1767179445435,-151.0,0.00015779,2]
[400188463,1767179445445,-514.84070869,0.00015779,2]
[400188464,1767179445455,-500.0,0.00015779,2]
[400188465,1767179445465,-151.0,0.00015779,2]
[400188466,1767179445475,-500.0,0.00015779,2]
[400188467,1767179445485,-500.0,0.00015779,2]
[400188469,1767179445495,-500.0,0.00015779,2]
[400188472,1767179445505,-500.0,0.00015779,2]
[400188475,1767179445515,-500.0,0.00015779,2]
[400188477,1767179445526,-500.0,0.00015779,2]
[400188479,1767179445536,-500.0,0.00015779,2]
[400188481,1767179445547,-500.0,0.00015779,2]
[400188483,1767179445557,-500.0,0.00015779,2]
[400188484,1767179445566,-195.96791606,0.00015779,2]
[400188486,1767179445576,-500.0,0.00015779,2]
[400188488,1767179445585,-500.0,0.00015779,2]
[400188489,1767179445595,-500.0,0.00015779,2]
[400188491,1767179445605,-252.03411113,0.00015779,2]
[400188492,1767179445614,-500.0,0.00015779,2]
[400188494,1767179445624,-151.0,0.000158,2]
[400188496,1767179445634,-184.80545578,0.00015885,2]
[400188498,1767179445644,-151.60877791,0.0001589,2]
[400188500,1767179445655,-167.36182452,0.0001589,2]
[400188502,1767179445666,-154.8977644,0.0001589,2]
[400188504,1767179445680,-2500.0,0.0001589,2]
[400188506,1767179445690,-277.52543131,0.0001589,2]
[400188508,1767179445700,-1508.82384523,0.0001589,2]
[400188510,1767179445712,-952.56642275,0.0001592,2]
[400188512,1767179445721,-1034.86,0.0001594,2]
[400188514,1767179445731,-151.0,0.00016012,2]
[400188517,1767179445742,-1436.184966,0.00016012,2]
[400188518,1767179445753,-1436.184966,0.00016012,2]
[400188521,1767179445764,-1436.184966,0.00016012,2]
[400188523,1767179445773,-1436.184964,0.00016012,2]
[400188525,1767179445783,-707.65831041,0.00016012,2]
[400188527,1767179445792,-1861.9082954,0.00016012,2]
[400188529,1767179445803,-2922.38060374,0.00016012,2]
[400188531,1767179445813,-3084.09189109,0.00016012,2]
[400188533,1767179445823,-3000.0,0.00016012,2]
[400188535,1767179445833,-3000.0,0.00016012,2]
[400188537,1767179445843,-3000.0,0.00016012,2]
[400188539,1767179445853,-3000.0,0.00016012,2]
[400188541,1767179445863,-823.0,0.00016123,2]
[400188543,1767179445873,-170.30543614,0.00016173,2]
[400188545,1767179445883,-681.22174457,0.00016173,2]
[400188547,1767179445892,-1532.74892528,0.00016173,2]
[400188549,1767179445902,-2724.88697827,0.00016173,2]
[400188551,1767179445913,-4257.63590355,0.00016173,2]
[400188554,1767179445923,-168.24072923,0.00016173,2]
[400188556,1767179445933,-672.96291694,0.00016173,2]
[400188558,1767179445942,-1514.16656311,0.00016173,2]
[400188560,1767179445952,-2691.85166776,0.00016173,2]
[400188562,1767179445962,-4206.01823087,0.00016173,2]
[400188564,1767179445971,-6056.66625246,0.00016173,2]
[400188566,1767179445981,-202.297586,0.00016173,2]
[400188568,1767179445991,-202.297586,0.00016173,2]
[400188570,1767179446000,-202.297586,0.00016173,2]
[400188572,1767179446010,-202.297584,0.00016173,2]
[400188574,1767179446020,-151.0,0.00016173,2]
[400188576,1767179446031,-151.0,0.00016173,2]
[400188578,1767179446040,-1826.6361618,0.00016197,2]
[400188580,1767179446051,-151.0,0.00016327,2]
[400188582,1767179446061,-18317.15947953,0.00016327,2]
[400188585,1767179446192,-476.32654036,0.00016327,2]
[400188612,1767179563069,155.0,7.9e-07,2]
[400188613,1767179564122,155.0,7.9e-07,2]
[400188614,1767179565213,155.0,7.9e-07,2]
[400188615,1767179568734,326.37893241,6.136e-05,2]
[400188616,1767179569149,385.12714024,8.136e-05,2]
[400188617,1767179569583,443.87534807,0.00010136,2]
[400188669,1767180337536,-5000.0,0.00011153,2]
[400188670,1767180350198,0.01,0.00011132,2]
[400188671,1767180350221,2946.1084658,0.00011132,2]
[400188703,1767180554131,-317.19110941,0.00011294,2]
[400188704,1767180554154,-212.8167766,0.00011322,2]
[400188705,1767180554176,-589.0,0.00011958,2]
[400188706,1767180554198,-824.19573944,0.0001209,2]
[400188743,1767180631922,-186.85163856,0.00012089,2]
[400188745,1767180631931,-591.0,0.00012089,2]
[400188747,1767180631941,-500.0,0.0001209,2]
[400188749,1767180631951,-500.0,0.0001209,2]
[400188751,1767180631960,-500.0,0.0001209,2]
[400188753,1767180631974,-500.0,0.0001209,2]
[400188755,1767180631983,-500.0,0.0001209,2]
[400188757,1767180631993,-497.02016962,0.0001209,2]
[400188759,1767180632003,-500.0,0.0001209,2]
[400188761,1767180632013,-500.0,0.0001209,2]
[400188763,1767180632022,-500.0,0.0001209,2]
[400188765,1767180632032,-500.0,0.0001209,2]
[400188767,1767180632041,-500.0,0.0001209,2]
[400188769,1767180632051,-500.0,0.0001209,2]
[400188771,1767180632061,-500.0,0.0001209,2]
[400188773,1767180632070,-500.0,0.0001209,2]
[400188775,1767180632079,-500.0,0.0001209,2]
[400188777,1767180632088,-500.0,0.0001209,2]
[400188779,1767180632097,-500.0,0.0001209,2]
[400188781,1767180632108,-500.0,0.0001209,2]
[400188783,1767180632117,-500.0,0.0001209,2]
[400188785,1767180632130,-240.71521056,0.0001209,2]
[400188827,1767180637948,-259.28478944,0.0001209,2]
[400188828,1767180637958,-500.0,0.0001209,2]
[400188829,1767180637968,-500.0,0.0001209,2]
[400188830,1767180637977,-500.0,0.0001209,2]
[400188831,1767180637987,-500.0,0.0001209,2]
[400188832,1767180637996,-500.0,0.0001209,2]
[400188833,1767180638006,-500.0,0.0001209,2]
[400188834,1767180638015,-500.0,0.0001209,2]
[400188835,1767180638025,-165.781294,0.0001209,2]
[400188836,1767180638034,-500.0,0.0001209,2]
[400188837,1767180638044,-500.0,0.0001209,2]
[400188838,1767180638053,-500.0,0.0001209,2]
[400188839,1767180638063,-123.55674218,0.0001209,2]
[400188840,1767180638075,-376.44325782,0.0001209,2]
[400188841,1767180638085,-500.0,0.0001209,2]
[400188842,1767180638095,-500.0,0.0001209,2]
[400188843,1767180638104,-500.0,0.0001209,2]
[400188844,1767180638114,-500.0,0.0001209,2]
[400188845,1767180638125,-500.0,0.0001209,2]
[400188846,1767180638136,-375.80426056,0.0001209,2]
[400188847,1767180638146,-300.0,0.0001209,2]
[400188848,1767180638163,-300.0,0.0001209,2]
[400188849,1767180638177,-434.0,0.0001209,2]
[400188850,1767180638187,-835.37523028,0.00012091,2]
[400188851,1767180638207,-2044.97081546,0.00012091,2]
[400188852,1767180638221,-49814.89591835,0.00012091,2]
[400188853,1767180638231,-453.06862128,0.0001219,2]
[400188854,1767180638241,-258.99381174,0.0001219,2]
[400188855,1767180638252,-50000.0,0.0001219,2]
[400188856,1767180638263,-1086.52929381,0.00012239,2]
[400188857,1767180638274,-300.0,0.00012438,2]
[400188858,1767180638285,-300.0,0.00012438,2]
[400188859,1767180638296,-300.0,0.00012438,2]
[400188860,1767180638306,-300.0,0.00012438,2]
[400188861,1767180638317,-300.0,0.00012438,2]
[400188862,1767180638327,-300.0,0.00012438,2]
[400188863,1767180638336,-300.0,0.00012438,2]
[400188864,1767180638346,-300.0,0.00012438,2]
[400188865,1767180638356,-300.0,0.00012438,2]
[400188866,1767180638366,-300.0,0.00012438,2]
[400188867,1767180638376,-300.0,0.00012438,2]
[400188868,1767180638386,-300.0,0.00012438,2]
[400188869,1767180638396,-300.0,0.00012438,2]
[400188870,1767180638407,-300.0,0.00012438,2]
[400188871,1767180638417,-300.0,0.00012438,2]
[400188872,1767180638426,-600.0,0.00012438,2]
[400188873,1767180638436,-260.63,0.00012687,2]
[400188874,1767180638445,-500.0,0.00012999,2]
[400188875,1767180638455,-150.0,0.00012999,2]
[400188876,1767180638464,-150.0,0.00012999,2]
[400188877,1767180638475,-500.0,0.00013136,2]
[400188878,1767180638484,-150.0,0.00013136,2]
[400188879,1767180638494,-647.0,0.00013271,2]
[400188880,1767180638504,-420.0,0.00013271,2]
[400188881,1767180638513,-500.0,0.00013272,2]
[400188882,1767180638523,-338.65592813,0.00013272,2]
[400188883,1767180638532,-500.0,0.00013272,2]
[400188884,1767180638542,-500.0,0.00013272,2]
[400188885,1767180638551,-456.8638323,0.00013272,2]
[400188886,1767180638561,-500.0,0.00013273,2]
[400188887,1767180638572,-500.0,0.00013273,2]
[400188888,1767180638583,-500.0,0.00013273,2]
[400188889,1767180638593,-500.0,0.00013273,2]
[400188890,1767180638603,-500.0,0.00013273,2]
[400188891,1767180638613,-500.0,0.00013273,2]
[400188892,1767180638623,-500.0,0.00013273,2]
[400188893,1767180638633,-500.0,0.00013273,2]
[400188894,1767180638642,-500.0,0.00013273,2]
[400188895,1767180638653,-500.0,0.00013273,2]
[400188896,1767180638663,-500.0,0.00013273,2]
[400188897,1767180638672,-500.0,0.00013273,2]
[400188898,1767180638682,-500.0,0.00013273,2]
[400188899,1767180638692,-500.0,0.00013273,2]
[400188900,1767180638702,-500.0,0.00013273,2]
[400188901,1767180638712,-500.0,0.00013273,2]
[400188902,1767180638722,-544.63270575,0.00013273,2]
[400188903,1767180638734,-500.0,0.00013273,2]
[400188904,1767180638753,-500.0,0.00013273,2]
[400188905,1767180638766,-500.0,0.00013273,2]
[400188906,1767180638775,-500.0,0.00013273,2]
[400188907,1767180638785,-500.0,0.00013273,2]
[400188908,1767180638795,-500.0,0.00013273,2]
[400188909,1767180638805,-500.0,0.00013273,2]
[400188910,1767180638815,-500.0,0.00013273,2]
[400188911,1767180638826,-500.0,0.00013273,2]
[400188912,1767180638836,-500.0,0.00013273,2]
[400188913,1767180638846,-500.0,0.00013273,2]
[400188914,1767180638855,-500.0,0.00013273,2]
[400188915,1767180638865,-499.96763801,0.00013273,2]
[400188916,1767180638875,-500.0,0.00013273,2]
[400188917,1767180638885,-500.0,0.00013273,2]
[400188918,1767180638895,-500.0,0.00013273,2]
[400188919,1767180638905,-500.0,0.00013273,2]
[400188920,1767180638915,-500.0,0.00013273,2]
[400188921,1767180638925,-413.99757981,0.00013273,2]
[400188922,1767180638935,-381.16221649,0.00013273,2]
[400188923,1767180638945,-500.0,0.00013273,2]
[400188924,1767180638955,-500.0,0.00013273,2]
[400188925,1767180639131,-500.0,0.00013273,2]
[400188926,1767180639151,-500.0,0.00013273,2]
[400188927,1767180639162,-500.0,0.00013273,2]
[400188928,1767180639174,-500.0,0.00013273,2]
[400188929,1767180639184,-602.47879957,0.00013273,2]
[400188930,1767180639194,-500.0,0.00013273,2]
[400188931,1767180639203,-643.73534753,0.00013273,2]
[400188932,1767180639215,-150.0,0.00013273,2]
[400188933,1767180639226,-150.0,0.00013273,2]
[400188934,1767180639236,-150.0,0.00013273,2]
[400188935,1767180639247,-159.59435749,0.00013273,2]
[400188936,1767180639258,-169.6762874,0.00013273,2]
[400188937,1767180639268,-150.0,0.00013273,2]
[400188938,1767180639278,-374.2855091,0.00013294,2]
[400188939,1767180639288,-150.0,0.0001341,2]
[400188940,1767180639298,-150.0,0.0001341,2]
[400188941,1767180639308,-150.0,0.0001341,2]
[400188942,1767180639319,-150.0,0.0001341,2]
[400188943,1767180639328,-10000.0,0.0001354,2]
[400188944,1767180639338,-500.0,0.00013547,2]
[400188945,1767180639348,-225.15985308,0.00013547,2]
[400188946,1767180639357,-191.17925611,0.00013547,2]
[400188947,1767180639368,-150.0,0.00013547,2]
[400188948,1767180639377,-150.0,0.00013547,2]
[400188949,1767180639387,-952.56642275,0.00013599,2]
[400188950,1767180639397,-300.0,0.00013673,2]
[400188951,1767180639406,-720.0,0.00013682,2]
[400188952,1767180639415,-150.0,0.00013684,2]
[400188953,1767180639425,-150.0,0.00013684,2]
[400188954,1767180639435,-1070.72,0.00013698,2]
[400188955,1767180639445,-1070.72,0.00013698,2]
[400188956,1767180639455,-1070.72,0.00013698,2]
[400188957,1767180639464,-1070.72,0.00013698,2]
[400188958,1767180639474,-1070.72,0.00013698,2]
[400188959,1767180639483,-1070.72,0.00013698,2]
[400188960,1767180639494,-1070.72,0.00013698,2]
[400188961,1767180639503,-1070.72,0.00013698,2]
[400188962,1767180639512,-1070.72,0.00013698,2]
[400188963,1767180639521,-1070.72,0.00013698,2]
[400188964,1767180639530,-1070.72,0.00013698,2]
[400188965,1767180639539,-1070.72,0.00013698,2]
[400188966,1767180639548,-1070.72,0.00013698,2]
[400188967,1767180639557,-1070.72,0.00013698,2]
[400188968,1767180639566,-1070.72,0.00013698,2]
[400188969,1767180639575,-1070.72,0.00013698,2]
[400188970,1767180639584,-1070.72,0.00013698,2]
[400188971,1767180639593,-1070.72,0.00013698,2]
[400188972,1767180639602,-1070.72,0.00013698,2]
[400188973,1767180639612,-1070.72,0.00013698,2]
[400188974,1767180639621,-1070.72,0.00013698,2]
[400188975,1767180639631,-1070.72,0.00013698,2]
[400188976,1767180639640,-1070.72,0.00013698,2]
[400188977,1767180639650,-1070.81863052,0.00013698,2]
[400188978,1767180639660,-500.0,0.00013698,2]
[400188979,1767180639669,-500.0,0.00013698,2]
[400188980,1767180639679,-500.0,0.00013698,2]
[400188981,1767180639688,-500.0,0.00013698,2]
[400188982,1767180639698,-385.90947657,0.00013698,2]
[400188983,1767180639708,-1194.02,0.00013698,2]
[400188984,1767180639717,-1194.02,0.00013698,2]
[400188985,1767180639727,-1194.02,0.00013698,2]
[400188986,1767180639736,-1194.02,0.00013698,2]
[400188987,1767180639745,-1194.02,0.00013698,2]
[400188988,1767180639755,-1194.02,0.00013698,2]
[400188989,1767180639764,-1194.02,0.00013698,2]
[400188990,1767180639773,-1194.02,0.00013698,2]
[400188991,1767180639782,-1194.02,0.00013698,2]
[400188992,1767180639791,-1194.02,0.00013698,2]
[400188993,1767180639800,-1194.02,0.00013698,2]
[400188995,1767180639809,-1194.02,0.00013698,2]
[400188996,1767180639819,-1194.02,0.00013698,2]
[400188998,1767180639828,-1194.02,0.00013698,2]
[400188999,1767180639837,-1194.02,0.00013698,2]
[400189000,1767180639847,-1194.02,0.00013698,2]
[400189001,1767180639856,-1194.02,0.00013698,2]
[400189003,1767180639865,-1194.02,0.00013698,2]
[400189004,1767180639880,-1194.02,0.00013698,2]
[400189006,1767180639890,-1194.02,0.00013698,2]
[400189007,1767180639899,-1194.02,0.00013698,2]
[400189008,1767180639908,-500.0,0.00013698,2]
[400189009,1767180639917,-1194.02,0.00013698,2]
[400189010,1767180639926,-500.0,0.00013698,2]
[400189011,1767180639935,-500.0,0.00013698,2]
[400189012,1767180639944,-1194.02,0.00013698,2]
[400189013,1767180639954,-262.16767073,0.00013698,2]
[400189014,1767180639963,-500.0,0.00013698,2]
[400189015,1767180639973,-1194.24,0.00013698,2]
[400189016,1767180639982,-500.0,0.00013698,2]
[400189017,1767180639992,-500.0,0.00013698,2]
[400189018,1767180640001,-500.0,0.00013698,2]
[400189019,1767180640011,-500.0,0.00013698,2]
[400189020,1767180640020,-500.0,0.00013698,2]
[400189021,1767180640031,-500.0,0.00013698,2]
[400189022,1767180640040,-500.0,0.00013698,2]
[400189023,1767180640050,-500.0,0.00013698,2]
[400189024,1767180640059,-500.0,0.00013698,2]
[400189025,1767180640068,-500.0,0.00013698,2]
[400189027,1767180640077,-500.0,0.00013698,2]
[400189028,1767180640087,-352.77068895,0.00013698,2]
[400189030,1767180640097,-114643.9249797,0.00013699,2]
[400189032,1767180640106,-500.0,0.00013699,2]
[400189033,1767180640115,-500.0,0.00013699,2]
[400189035,1767180640125,-500.0,0.00013699,2]
[400189037,1767180640136,-500.0,0.00013699,2]
[400189039,1767180640146,-500.0,0.00013699,2]
[400189041,1767180640155,-500.0,0.00013699,2]
[400189043,1767180640163,-500.0,0.00013699,2]
[400189045,1767180640174,-500.68443154,0.00013699,2]
[400189046,1767180640183,-500.0,0.00013699,2]
[400189048,1767180640192,-500.0,0.00013699,2]
[400189050,1767180640205,-500.0,0.00013699,2]
[400189052,1767180640215,-500.0,0.00013699,2]
[400189054,1767180640224,-500.48099046,0.00013699,2]
[400189056,1767180640233,-500.0,0.00013699,2]
[400189057,1767180640243,-500.0,0.00013699,2]
[400189059,1767180640252,-500.0,0.00013699,2]
[400189061,1767180640261,-251.84601956,0.00013699,2]
[400189063,1767180640270,-500.0,0.00013699,2]
[400189065,1767180640279,-500.0,0.00013699,2]
[400189066,1767180640289,-500.4478313,0.00013699,2]
[400189068,1767180640298,-500.0,0.00013699,2]
[400189070,1767180640307,-500.0,0.00013699,2]
[400189072,1767180640316,-500.0,0.00013699,2]
[400189073,1767180640326,-500.0,0.00013699,2]
[400189075,1767180640336,-500.0,0.00013699,2]
[400189077,1767180640345,-500.0,0.00013699,2]
[400189079,1767180640354,-587.30545204,0.00013699,2]
[400189082,1767180640363,-157.55448324,0.00013699,2]
[400189085,1767180640372,-500.0,0.00013699,2]
[400189087,1767180640382,-500.0,0.00013699,2]
[400189089,1767180640391,-500.0,0.00013699,2]
[400189091,1767180640400,-500.0,0.00013699,2]
[400189093,1767180640409,-500.0,0.00013699,2]
[400189095,1767180640418,-237.8458189,0.00013699,2]
[400189097,1767180640427,-157.18386067,0.00013699,2]
[400189099,1767180640436,-500.0,0.00013699,2]
[400189100,1767180640445,-158.38534191,0.00013699,2]
[400189102,1767180640454,-500.0,0.00013699,2]
[400189104,1767180640463,-158.38532202,0.00013699,2]
[400189106,1767180640472,-242.87306652,0.00013699,2]
[400189107,1767180640481,-416.75445415,0.00013699,2]
[400189108,1767180640490,-260.28159851,0.00013699,2]
[400189110,1767180640499,-158.18512013,0.00013699,2]
[400189112,1767180640508,-500.0,0.00013699,2]
[400189113,1767180640517,-158.39206841,0.00013699,2]
[400189115,1767180640526,-160.15137988,0.00013699,2]